Cogmind - Beta 16 @@@ ROGUE MODE // 2025.12.31 @ 13:19:57 Player: BottomOfTheSwamp Result: Self-destructed Performance ------------- Evolutions (1) 500 Regions Visited (3) 600 Robots Destroyed (28) 140 Value Destroyed (612) 612 Prototype IDs (0) 0 Alien Tech Used (0) 0 Bonus (0) 0 TOTAL SCORE: 1852 Bonus ------- None Cogmind --------- Core Integrity 46/400 Matter 225/300 Energy 100/100 System Corruption 0% Temperature Cool (9) Movement Core (100) Ox1 Location -9/Storage Parts ------- > --- POWER (1) -------- (None) > --- PROPULSION (2) --- (None) > --- UTILITY (4) ------ Small Storage Unit Improved Targeting Computer Improved Targeting Computer > --- WEAPON (2) ------- (None) > --- INVENTORY (8) ---- ECM Suite Light Armor Plating Peak State ------------ > --- POWER ------------ Improved Ion Engine > --- PROPULSION ------- Hover Unit Improved Hover Unit > --- UTILITY ---------- Heat Sink Small Storage Unit Sensor Array Improved Targeting Computer > --- WEAPON ----------- Small Laser Particle Cannon > --- INVENTORY -------- Hover Unit Heat Sink Improved Targeting Computer ECM Suite Light Armor Plating Beam Rifle Beam Rifle Rocket Launcher [Rating: 14] Favorites ----------- Power Ion Engine Engine Ion Engine Propulsion Aluminum Leg Leg Aluminum Leg Hover Unit Hover Unit Utility Small Storage Unit Device Sensor Array Storage Small Storage Unit Processor Improved Targeting Computer Protection Light Armor Plating Weapon Small Laser Energy Gun Small Laser Energy Cannon Particle Cannon Launcher Grenade Launcher Special Melee Weapon Datajack Build | -11 -10 -9 -9 ------- Run | Yrd Mat Mat Sto Slots Evolved 2 | . . 2 . Power . | . . . . Propulsion . | . . . . Utility 2 | . . 2 . Weapon . | . . . . Parts Attached 26 | 6 2 8 10 Power 2 | 1 . 1 . Engine 2 | 1 . 1 . Core . | . . . . Reactor . | . . . . Propulsion 6 | 2 . 2 2 Treads . | . . . . Leg 2 | 2 . . . Wheel . | . . . . Hover 4 | . . 2 2 Flight . | . . . . Utility 10 | 1 1 4 4 Device 5 | . 1 2 2 Storage 1 | 1 . . . Processor 3 | . . 1 2 Hackware . | . . . . Protection 1 | . . 1 . Artifact . | . . . . Weapon 8 | 2 1 1 4 Energy Gun 4 | 2 . . 2 Energy Cannon 1 | . . 1 . Ballistic Gun . | . . . . Ballistic Cannon . | . . . . Launcher 2 | . 1 . 1 Special Weapon . | . . . . Impact Weapon . | . . . . Slashing Weapon . | . . . . Piercing Weapon . | . . . . Special Melee Weapon 1 | . . . 1 Unidentified Prototypes . | . . . . Parts Lost 16 | . . 4 12 Power 2 | . . 1 1 Propulsion 3 | . . . 3 Utility 5 | . . 2 3 Weapon 6 | . . 1 5 Highest Loss Streak 7 | . . 3 7 To Critical Strikes . | . . . . Average Backups 5 | . 2 6 7 Power . | . . . . Propulsion . | . . . . Utility 2 | . 1 3 3 Weapon 1 | . . 2 2 Tool/Special . | . . . . Unused Backups 3 | . . . 3 Power . | . . . . Propulsion . | . . . . Utility 3 | . . . 3 Weapon . | . . . . Tool/Special . | . . . . Average Slot Usage (%) 92 | . 96 80 93 Engine 11 | . 14 8 10 Leg 13 | . 28 18 . Hover 9 | . . 2 19 Device 15 | . 10 14 19 Storage 12 | . 14 11 11 Processor 6 | . . 5 11 Energy Gun 16 | . 25 11 12 Energy Cannon 4 | . . 5 8 Launcher 1 | . 2 1 . Peak Build Rating 14 | 6 7 12 14 Average Rating 9 | 4 6 8 12 On Entrance 6 | . 6 7 11 Avg Prop Armor Cover (%) . | . . . . Naked Turns . | . . . . Heaviest Build 20 | 12 15 19 20 Greatest Support 20 | 20 20 20 13 Greatest Overweight (x) 3 | . . 3 2 Average Overweight (x) . | . . . 1 Largest Inventory Capacity 8 | 8 8 8 8 Average Capacity 7 | 6 8 8 8 Most Carried 8 | 5 6 8 8 Average Carried 5 | 1 2 6 7 Final Capacity 8 | 8 8 8 8 Final Carried 5 | . 5 5 2 Class Distribution -------------------- 100% | Mutant Dominant Class ---------------- Mutant | -10/Materials Mutant | -9/Materials Mutant | -9/Storage Resources | -11 -10 -9 -9 ----------- Run | Yrd Mat Mat Sto Matter Collected 550 | 198 172 75 105 Remotely . | . . . . Salvage Created 838 | . 196 331 311 Parts 64 | . 20 28 16 Haulers Intercepted 2 | . 1 1 . Recyclers Shooed 5 | . 2 1 2 Parts Field Recycled . | . . . . Retrieved Matter . | . . . . Parts Self-Destructed . | . . . . Prevented . | . . . . Parts Restored . | . . . . Kills | -11 -10 -9 -9 ------- Run | Yrd Mat Mat Sto Combat Hostiles Destroyed 17 | . 6 4 7 Guns 10 | . 4 3 3 Cannons 4 | . . 1 3 AOE 3 | . 2 . 1 Classes Destroyed 8 | . 4 2 2 Worker 1 | . . . 1 Hauler 2 | . 1 1 . Recycler 2 | . 1 1 . Operator 1 | . . . 1 Watcher 5 | . 2 2 1 Swarmer 6 | . 6 . . Grunt 6 | . . 1 5 Sentry 5 | . . 3 2 Best Kill Streak 6 | . 6 4 2 Combat Bots Only 3 | . 3 2 2 Max Kills in Single Turn 2 | . 2 1 1 Gunslinging . | . . . . Exploded 2 | . 2 . 1 Melee . | . . . . Uniques/NPCs Destroyed . | . . . . Combat | -11 -10 -9 -9 -------- Run | Yrd Mat Mat Sto Hostile Shots Fired 136 | . 12 49 75 Missed 30 | . 3 14 13 Hits 106 | . 9 35 62 Projectile 106 | . 9 35 62 Critical Strikes 1 | . . 1 . Damage Taken 1448 | . 74 514 860 Core 361 | . 7 76 278 Absorbed by Shields . | . . . . Core Remaining (%) 98 | 100 97 . . Volleys Fired 76 | . 19 25 32 Largest 2 | . 2 2 2 Hottest 124 | . 80 108 124 Shots Fired 126 | . 37 34 55 Gun 99 | . 33 25 41 Cannon 17 | . . 8 9 Launcher 10 | . 4 1 5 Special . | . . . . Kinetic . | . . . . Thermal 116 | . 33 33 50 Explosive 10 | . 4 1 5 Electromagnetic . | . . . . Robot Hit Streak 15 | . 4 13 15 Robot Miss Streak 5 | . 5 1 2 Penetration Max . | . . . . Secondary Targets . | . . . . Shots Hit Robots 93 | . 16 28 49 Core Hits 51 | . 15 15 21 Critical Kills . | . . . . Critical Parts Destroyed . | . . . . Critical Strikes 2 | . . . 2 Burn 2 | . . . 2 Melee Attacks 4 | . . . 4 Impact . | . . . . Slashing . | . . . . Piercing . | . . . . Sneak Attacks . | . . . . Combat Hostiles . | . . . . Follow-up Attacks . | . . . . Damage Inflicted 1668 | . 334 405 929 Guns 851 | . 188 257 406 Cannons 285 | . . 102 183 Explosions 532 | . 146 46 340 Melee . | . . . . Ramming . | . . . . Kinetic . | . . . . Thermal 1136 | . 188 359 589 Explosive 532 | . 146 46 340 Electromagnetic . | . . . . Impact . | . . . . Slashing . | . . . . Piercing . | . . . . Highest Corruption . | . . . . Average Corruption . | . . . . Corruption Purged . | . . . . Corruption Blocked . | . . . . Overload Shots . | . . . . Overflow Damage 26 | . 2 6 18 Projectiles . | . . . . Explosions 26 | . 2 6 18 Melee . | . . . . Knockbacks . | . . . . Impact . | . . . . Kinetic . | . . . . Secondary . | . . . . Self-Inflicted Damage 30 | . . . 30 Shots 3 | . . . 3 Rammed . | . . . . Targets Rammed . | . . . . Kicked . | . . . . Crushed . | . . . . Highest Temperature 133 | . 90 133 81 Average Temperature 32 | . 25 41 34 Received Heat Transfer 594 | . . 183 411 Siege Activations . | . . . . Martial Activations . | . . . . Shielding Activations . | . . . . Robots Disrupted . | . . . . Combat Hostiles . | . . . . Robots Corrupted . | . . . . Combat Hostiles . | . . . . Parts Fried . | . . . . Impact Corruptions . | . . . . Robots Melted . | . . . . Combat Hostiles . | . . . . Parts Melted 3 | . . 2 1 Heat Transferred 2658 | . 425 760 1473 Parts Sabotaged . | . . . . Parts Stolen . | . . . . Parts Stripped . | . . . . Power Chain Reactions . | . . . . Alert | -11 -10 -9 -9 ------- Run | Yrd Mat Mat Sto Maximum Alert Level . | . . . . Low Security (%) 100 | 100 100 100 100 Level 1 . | . . . . Level 2 . | . . . . Level 3 . | . . . . Level 4 . | . . . . Level 5 . | . . . . High Security . | . . . . Max Security . | . . . . Peak Influence 139 | . 139 118 57 Initial 41 | . . 41 29 Average 32 | . 44 72 12 Influence Increases 667 | . 232 190 245 Destroy 0b10 Robot/C 340 | . 120 80 140 Destroy 0b10 Robot/NC 55 | . 20 20 15 Destroy Leader 114 | . 26 46 42 Successful Hack 24 | . 8 . 16 Disable Machine 15 | . 15 . . Destroy Structure 59 | . 28 14 17 Partial Spotted 30 | . . 30 . Lose Combat Pursuer 30 | . 15 . 15 Influence Decreases 667 | . 133 218 316 Entered New Map 100 | . . 58 42 Time Decay 455 | . 133 120 202 Lost Part 112 | . . 40 72 Squads Dispatched 3 | . . 1 2 Investigation . | . . . . Extermination . | . . . . Reinforcement 3 | . . 1 2 Assault . | . . . . Garrison . | . . . . Intercept . | . . . . Searches Triggered . | . . . . Construction Impeded . | . . . . Haulers Reinforced . | . . . . Active Scanning Responses . | . . . . Cargo Convoy Interrupts . | . . . . Stealth | -11 -10 -9 -9 --------- Run | Yrd Mat Mat Sto Distress Signals 4 | . 1 . 3 Communications Jammed . | . . . . Distress Signals . | . . . . Times Spotted 36 | . 12 9 15 Peak Tracking Total 4 | . 4 4 4 Tactical Retreats 2 | . 1 . 1 Traps | -11 -10 -9 -9 ------- Run | Yrd Mat Mat Sto Traps Triggered . | . . . . Indirectly . | . . . . Trap Hack Attempts . | . . . . Triggered . | . . . . Disarmed . | . . . . Reprogrammed . | . . . . Reused . | . . . . Traps Extracted . | . . . . Installed . | . . . . Triggered . | . . . . Machines | -11 -10 -9 -9 ---------- Run | Yrd Mat Mat Sto Machines Disabled 1 | . 1 . . Max in Single Turn 1 | . 1 . . Machines Repaired . | . . . . Machines Dismantled . | . . . . Machines Sabotaged . | . . . . Overloaded Fab Kills . | . . . . Hacking | -11 -10 -9 -9 --------- Run | Yrd Mat Mat Sto Machines Accessed 6 | . 3 . 3 Terminals 6 | . 3 . 3 Fabricators . | . . . . Repair Stations . | . . . . Recycling Units . | . . . . Scanalyzers . | . . . . Garrison Access . | . . . . Total Hacks 12 | . 5 . 7 Successful 4 | . 1 . 3 Failed 8 | . 4 . 4 Catastrophic 3 | . 1 . 2 Database Lockouts . | . . . . Manual 5 | . 5 . . Terminals 12 | . 5 . 7 Fabricators . | . . . . Repair Stations . | . . . . Recycling Units . | . . . . Scanalyzers . | . . . . Garrison Access . | . . . . Terminal Hacks 4 | . 1 . 3 Record 1 | . . . 1 Branch Access Points 1 | . 1 . . Alert Level 1 | . . . 1 Locate Traps 1 | . . . 1 Fabricator Hacks . | . . . . Repair Station Hacks . | . . . . Recycling Unit Hacks . | . . . . Scanalyzer . | . . . . Garrison Access Hacks . | . . . . Unauthorized Hacks . | . . . . Terminals . | . . . . Fabricators . | . . . . Repair Stations . | . . . . Recycling Units . | . . . . Scanalyzers . | . . . . Garrison Access . | . . . . Data Cores Recovered . | . . . . Used . | . . . . Hacking Detections 6 | . 3 . 3 Full Trace Events . | . . . . Feedback Events . | . . . . Feedback Blocked . | . . . . Robot Schematics Acquired . | . . . . Robots Built . | . . . . Authchips . | . . . . Time . | . . . . Total Robot Build Rating . | . . . . Part Schematics Acquired . | . . . . Parts Built . | . . . . Authchips . | . . . . Time . | . . . . Total Part Build Rating . | . . . . Part Studies Acquired . | . . . . Parts Repaired . | . . . . Time . | . . . . Parts Recycled . | . . . . Recycled Matter . | . . . . Retrieved Matter . | . . . . Retrieved Components . | . . . . Parts Scanalyzed . | . . . . Part Schematics Acquired . | . . . . Parts Damaged . | . . . . Bothacking | -11 -10 -9 -9 ------------ Run | Yrd Mat Mat Sto Used RIF Installer . | . . . . Robots Hacked . | . . . . Non-combat . | . . . . Combat . | . . . . Robot Hacks Applied . | . . . . Relay Couplers Released . | . . . . Fabnet Peak Effective % . | . . . . Robots Rewired . | . . . . Allies Hacked . | . . . . Hacks Repelled . | . . . . Allies | -11 -10 -9 -9 -------- Run | Yrd Mat Mat Sto Total Allies . | . . . . Largest Group . | . . . . Highest-Rated Group . | . . . . Highest-Rated Ally . | . . . . Total Orders . | . . . . Ally Attacks . | . . . . Total Damage . | . . . . Kills . | . . . . Allies Corrupted . | . . . . Allies Melted . | . . . . Intel | -11 -10 -9 -9 ------- Run | Yrd Mat Mat Sto Active Infowar (turns) 1305 | . 439 239 627 Sensors 1291 | . 439 239 613 ECM 14 | . . . 14 Robot Analysis Total . | . . . . Derelict Logs Recovered . | . . . . Drone Launches . | . . . . Drone Recoveries . | . . . . Exploration | -11 -10 -9 -9 ------------- Run | Yrd Mat Mat Sto Turns Passed 1657 | 50 596 246 765 Spaces Moved 807 | 35 395 132 245 Core 16 | 16 . . . Treads . | . . . . Legs 516 | 19 395 102 . Wheels . | . . . . Hover 275 | . . 30 245 Flight . | . . . . Fastest Speed 50 | 50 120 116 116 Average Speed 118 | 88 120 121 120 Slowest Speed 240 | 120 120 240 180 Overloaded Moves . | . . . . Propulsion Burnouts . | . . . . Robots Hopped . | . . . . Potential Cave-ins . | . . . . Cave-ins Triggered . | . . . . Exploration Rate (%) 20 | 2 40 13 28 Regions Visited 3 Branch Regions 1 Pre-discovered Areas . | . . . . Known Exits Taken . | . . . . Unknown Exits Taken 3 | 1 1 1 . Scrap Searched . | . . . . Spaces Dug . | . . . . Terrain Destroyed 50 | . 28 11 11 Melee . | . . . . Projectile . | . . . . AOE 50 | . 28 11 11 Terrain Rammed . | . . . . Walls Destroyed . | . . . . Machines Disabled . | . . . . Actions | -11 -10 -9 -9 --------- Run | Yrd Mat Mat Sto Total 1371 | 53 478 183 657 Wait 408 | 8 46 5 349 Move 804 | 34 394 131 245 Hop . | . . . . Pick Up 28 | 5 8 9 6 Fast Attach 4 | 1 . . 3 Attach 23 | 5 3 8 7 Detach . | . . . . Swap 13 | . 6 2 5 Drop 11 | . 2 3 6 Fire 76 | . 19 25 32 Melee 4 | . . . 4 Ram . | . . . . Kick . | . . . . Crush . | . . . . Escape Stasis . | . . . . Rewire . | . . . . Trap . | . . . . Miscellaneous . | . . . . Route ------- -11/Scrapyard -10/Materials (discovered 3 exits: [*Mat] / Min / [*Sub]) -9/Materials -9/Storage History --------- Turn | Location | Event 9 | -11/Scrapyard | Discovered new exit (range 16) 51 | -11/Scrapyard | Entered Materials 137 | -10/Materials | Discovered new exit (range 13) 305 | -10/Materials | Build established: Mutant 554 | -10/Materials | Identified exit to Mines 562 | -10/Materials | Discovered new exit (range 10) 647 | -10/Materials | Entered another Materials area 647 | -9/Materials | Evolved 2 slots: Utility x2 732 | -9/Materials | Discovered new exit (range 15) 815 | -9/Materials | Lost 3 parts (1p1u1w) 893 | -9/Materials | Entered Storage 1592 | -9/Storage | Core integrity fell below 50% 1639 | -9/Storage | Core integrity fell below 20% 1646 | -9/Storage | Lost 7 parts (1p2n1u3w) 1658 | -9/Storage | Self-destructed Last Messages --------------- 01585_ U-05 Engineer lays Concrete. 01588_ U-05 Engineer builds a Door. 01589_ U-05 Engineer lays Concrete. 01591_ The unstable cave ceiling collapses. 01592_ Heat Sink destroyed. 01593_ K-01 Serf collects debris. 01593_ U-05 Engineer builds a Wall. 01593_ Rocket Launcher destroyed. 01598_ U-05 Engineer builds a Wall. 01609_ Hover Unit destroyed. 01610_ G-34 Mercenary suffers critical hit (Burn). 01610_ G-34 Mercenary destroyed. 01615_ Particle Cannon destroyed. 01620_ G-34 Mercenary suffers critical hit (Burn). 01623_ G-34 Mercenary overheating. 01624_ G-34 Mercenary heat spikes uncontrollably. 01624_ G-34 Mercenary overheating. 01646_ Beam Rifle destroyed. 01652_ Heat Sink destroyed. 01656_ Beam Rifle destroyed. Map ----- +----------------------------------------------------+ | ????????????????????????????????? | | ????????????????????????????????? | | ????????????????????????????????? | | ????????????????????????????????? | | ????????????????????????????????? | | ????????????????????????????????? | | ????????????????????????????????? | | ????????????????????????????????? | | ????????????????????????????????? | | ????????????????????????????????? | | ????????????????????????????????? | | ????????????????????????????????? | | ????????????????????????????????? | | ????????????????????? ?????????? | | ????????????????????? #????????? | | ????????????????????? #????????? | | ????????????????????? #????????? | | ???????? # ?????????# +????????? | | ?????????+ ????????# #????????? | | ?????????# ######## #????????? | | ?????????# # # #????????? | | ?????????# # %=^#????????? | | ?????????# #????????? | | ?????????# #?###????? | | ????? # # = ### ###### | | ??????"" + / # @ # | | ?????????# # %#g""" # | | ?????????# # #g""" = # | | ?????????# # #g""" # | | ?????????# # # m # | | ?????????# # # # """ # | | ?????????# # # # """ # | | ?????????# # # # """ # | | ?????????# ######## # # | | ?????????# % ########## | | ?????????# ########"######????? | | ?????????# # / % ] #????? | | ?????????# #! #????? | | ?????????# # #????? | | ?????????# # #????? | | ?????????# # #????? | | ?######??# # #????? | | ?#! #### ###############????? | | ?#!! #T## ## #?????????? | | ?# " # ## #?????????? | | ?#!! % %+ ## #?????????? | | ?#!! " # ## #?????????? | | ?#!! # # ## """ #?????????? | | ?######### ## """ #?????????? | | ?????????# ## """ #?????????? | +----------------------------------------------------+ Best States ------------- Heat Dissipation 38 Energy Generation 12 Energy Capacity 265 Matter Stores 300 Matter Capacity 300 Sight Range 16 Robot Scan Range 14 Terrain Scan Density 10 ECM Strength 1 Armor Coverage 150 Evasion (%) 55 Targeting Accuracy 12 Item Schematics ----------------- None Robot Schematics ------------------ None Fabricated ------------ Nothing Repaired ---------- Nothing Studied --------- None Alien Tech Used ----------------- None Achievements -------------- None Challenges ------------ None Game ------ Seed PowerMasterStorm Manual? 0 Play Time 00:16:57 Cumulative 17.1 hours Start 2025.12.31 @ 13:05:11 End 2025.12.31 @ 13:19:57 Sessions 1 Manual Loads 0 Difficulty Rogue Special Mode None Game No. 42 Rogue 42 Adventurer 0 Explorer 0 Win Type - Total 0 Types 0/0/0/0/0/0/0/0/0/0 Lore% 11 Gallery% 19 Achievement% 15 Wizard Run 0 Options --------- Layout 0 ASCII 0 Keyboard 0 Movement Arrows Keybinds 0 Fullscreen 1 Font 18/SmallcapsGlow Map View 76x50 Zoom Use 0% Tactical HUD 1 Map Filters NONE Filters NONE Steam 1 RUN: 01626b5a-b3b6-421e-a3aa-2c7fcc0f133c